fUST/lending_fUST_20251223
["ID","MTS","AMOUNT","RATE_DAILY","PERIOD"]
[399519119,1766430642659,-500.0,0.00010958,2]
[399519120,1766430642668,-500.0,0.00010958,2]
[399519122,1766430642677,-500.0,0.00010958,2]
[399519123,1766430642686,-500.0,0.00010958,2]
[399519124,1766430642696,-500.0,0.00010958,2]
[399519125,1766430642706,-1141.44,0.00010958,2]
[399519127,1766430642715,-500.0,0.00010958,2]
[399519128,1766430642724,-596.02,0.00010958,2]
[399519129,1766430642733,-500.0,0.00010958,2]
[399519130,1766430642742,-950.31,0.00010958,2]
[399519131,1766430642751,-480.06271428,0.00010958,2]
[399519132,1766430642760,-500.0,0.00010958,2]
[399519133,1766430642768,-533.55338184,0.00010958,2]
[399519134,1766430642777,-581.6,0.00010958,2]
[399519135,1766430642787,-662.53,0.00010958,2]
[399519136,1766430642796,-500.0,0.00010958,2]
[399519137,1766430642805,-500.0,0.00010958,2]
[399519138,1766430642815,-500.0,0.00010958,2]
[399519139,1766430642825,-500.0,0.00010958,2]
[399519140,1766430642835,-262.58802528,0.00010958,2]
[399519141,1766430642845,-1132.62,0.00010958,2]
[399519142,1766430642856,-500.0,0.00010958,2]
[399519143,1766430642866,-500.0,0.00010958,2]
[399519144,1766430642876,-501.21883224,0.00010958,2]
[399519145,1766430642885,-500.0,0.00010958,2]
[399519146,1766430642895,-1000.0,0.00010958,2]
[399519147,1766430642904,-500.0,0.00010958,2]
[399519148,1766430642913,-206.01661279,0.00010958,2]
[399519149,1766430642923,-500.0,0.00010958,2]
[399519150,1766430642932,-793.52,0.00010958,2]
[399519151,1766430642941,-500.0,0.00010958,2]
[399519152,1766430642952,-500.0,0.00010958,2]
[399519153,1766430642961,-1663.7,0.00010958,2]
[399519154,1766430642971,-500.0,0.00010958,2]
[399519155,1766430642980,-614.96,0.00010958,2]
[399519156,1766430642990,-500.0,0.00010958,2]
[399519157,1766430642999,-321.86143244,0.00010958,2]
[399519158,1766430643010,-500.0,0.00010958,2]
[399519159,1766430643020,-500.0,0.00010958,2]
[399519160,1766430643029,-815.12,0.00010958,2]
[399519161,1766430643039,-836.02,0.00010958,2]
[399519162,1766430643049,-500.0,0.00010958,2]
[399519163,1766430643059,-801.78,0.00010958,2]
[399519164,1766430643067,-500.0,0.00010958,2]
[399519165,1766430643077,-500.0,0.00010958,2]
[399519166,1766430643087,-500.0,0.00010958,2]
[399519167,1766430643097,-627.93,0.00010958,2]
[399519168,1766430643106,-500.0,0.00010958,2]
[399519169,1766430643116,-548.05,0.00010958,2]
[399519170,1766430643125,-511.99564324,0.00010958,2]
[399519171,1766430643134,-500.0,0.00010958,2]
[399519172,1766430643143,-500.0,0.00010958,2]
[399519173,1766430643153,-2028.13,0.00010958,2]
[399519174,1766430643162,-500.0,0.00010958,2]
[399519175,1766430643172,-581.91,0.00010958,2]
[399519176,1766430643181,-500.0,0.00010958,2]
[399519177,1766430643190,-7825.34,0.00010958,2]
[399519178,1766430643199,-500.0,0.00010958,2]
[399519179,1766430643208,-500.0,0.00010958,2]
[399519180,1766430643217,-508.39873926,0.00010958,2]
[399519181,1766430643226,-500.0,0.00010958,2]
[399519182,1766430643236,-1681.24,0.00010958,2]
[399519183,1766430643245,-500.0,0.00010958,2]
[399519184,1766430643256,-500.0,0.00010958,2]
[399519185,1766430643266,-500.0,0.00010958,2]
[399519186,1766430643276,-500.0,0.00010958,2]
[399519187,1766430643285,-1120.7,0.00010958,2]
[399519188,1766430643295,-500.0,0.00010958,2]
[399519189,1766430643304,-1538.06,0.00010958,2]
[399519190,1766430643313,-500.0,0.00010958,2]
[399519191,1766430643322,-1273.66,0.00010958,2]
[399519192,1766430643331,-500.0,0.00010958,2]
[399519193,1766430643340,-500.0,0.00010958,2]
[399519194,1766430643349,-500.0,0.00010958,2]
[399519195,1766430643358,-500.0,0.00010958,2]
[399519196,1766430643367,-602.49,0.00010958,2]
[399519197,1766430643376,-500.0,0.00010958,2]
[399519198,1766430643385,-503.28943938,0.00010958,2]
[399519199,1766430643395,-1905.0,0.00010958,2]
[399519200,1766430643404,-500.0,0.00010958,2]
[399519201,1766430643414,-1314.25,0.00010958,2]
[399519202,1766430643423,-500.0,0.00010958,2]
[399519203,1766430643432,-500.0,0.00010958,2]
[399519204,1766430643442,-500.0,0.00010958,2]
[399519205,1766430643451,-886.34,0.00010958,2]
[399519206,1766430643461,-1008.3,0.00010958,2]
[399519207,1766430643472,-1358.04,0.00010958,2]
[399519208,1766430643481,-4348.93,0.00010958,2]
[399519209,1766430643492,-706.12,0.00010958,2]
[399519210,1766430643502,-500.0,0.00010958,2]
[399519211,1766430643511,-2973.84,0.00010958,2]
[399519212,1766430643521,-1883.2,0.00010958,2]
[399519213,1766430643530,-974.3,0.00010958,2]
[399519214,1766430643539,-323.90508774,0.00010958,2]
[399519215,1766430643550,-3090.15,0.00010958,2]
[399519216,1766430643559,-1385.15,0.00010958,2]
[399519217,1766430643568,-500.0,0.00010958,2]
[399519218,1766430643578,-500.0,0.00010958,2]
[399519219,1766430643588,-500.0,0.00010958,2]
[399519220,1766430643855,-152.91,0.00010958,2]
[399519221,1766430643866,-1157.48,0.00010958,2]
[399519222,1766430643876,-500.0,0.00010958,2]
[399519223,1766430643887,-500.0,0.00010958,2]
[399519224,1766430643896,-1704.76,0.00010958,2]
[399519225,1766430643906,-500.0,0.00010958,2]
[399519226,1766430643915,-500.0,0.00010958,2]
[399519227,1766430643926,-500.0,0.00010958,2]
[399519228,1766430643936,-500.0,0.00010958,2]
[399519229,1766430643945,-500.0,0.00010958,2]
[399519230,1766430643955,-500.0,0.00010958,2]
[399519233,1766430643965,-723.38,0.00010958,2]
[399519235,1766430643977,-500.0,0.00010958,2]
[399519237,1766430643987,-500.0,0.00010958,2]
[399519239,1766430643997,-500.0,0.00010958,2]
[399519240,1766430644007,-1353.95,0.00010958,2]
[399519241,1766430644020,-500.0,0.00010958,2]
[399519242,1766430644030,-500.0,0.00010958,2]
[399519243,1766430644040,-989.34,0.00010958,2]
[399519244,1766430644050,-500.0,0.00010958,2]
[399519245,1766430644061,-990.01,0.00010958,2]
[399519246,1766430644071,-462.95639701,0.00010958,2]
[399519247,1766430644081,-500.0,0.00010958,2]
[399519248,1766430644091,-500.0,0.00010958,2]
[399519249,1766430644100,-500.0,0.00010958,2]
[399519250,1766430644110,-500.0,0.00010958,2]
[399519251,1766430644120,-874.57,0.00010958,2]
[399519252,1766430644130,-500.0,0.00010958,2]
[399519253,1766430644139,-1996.74,0.00010958,2]
[399519254,1766430644149,-543.34,0.00010958,2]
[399519255,1766430644159,-500.0,0.00010958,2]
[399519256,1766430644168,-500.0,0.00010958,2]
[399519257,1766430644178,-500.0,0.00010958,2]
[399519258,1766430644188,-500.0,0.00010958,2]
[399519259,1766430644197,-500.0,0.00010958,2]
[399519260,1766430644207,-500.0,0.00010958,2]
[399519261,1766430644216,-500.0,0.00010958,2]
[399519262,1766430644226,-720.41,0.00010958,2]
[399519263,1766430644235,-1088.62,0.00010958,2]
[399519264,1766430644245,-2425.52,0.00010958,2]
[399519265,1766430644254,-500.0,0.00010958,2]
[399519267,1766430644263,-7330.11,0.00010958,2]
[399519269,1766430644273,-500.0,0.00010958,2]
[399519271,1766430644282,-504.93236574,0.00010958,2]
[399519273,1766430644292,-2397.58,0.00010958,2]
[399519275,1766430644302,-573.25,0.00010958,2]
[399519278,1766430644312,-500.0,0.00010958,2]
[399519280,1766430644323,-46508.84,0.00010958,2]
[399519282,1766430644333,-723.87,0.00010958,2]
[399519284,1766430644343,-500.0,0.00010958,2]
[399519286,1766430644353,-4881.33,0.00010958,2]
[399519288,1766430644363,-500.0,0.00010958,2]
[399519290,1766430644372,-500.0,0.00010958,2]
[399519292,1766430644382,-500.0,0.00010958,2]
[399519294,1766430644392,-500.0,0.00010958,2]
[399519296,1766430644402,-501.97453933,0.00010958,2]
[399519298,1766430644411,-500.0,0.00010958,2]
[399519300,1766430644421,-625.2,0.00010958,2]
[399519302,1766430644431,-500.0,0.00010958,2]
[399519304,1766430644440,-265.83422075,0.00010958,2]
[399519306,1766430644450,-500.0,0.00010958,2]
[399519308,1766430644460,-500.0,0.00010958,2]
[399519310,1766430644468,-2378.05,0.00010958,2]
[399519312,1766430644478,-500.0,0.00010958,2]
[399519314,1766430644487,-500.0,0.00010958,2]
[399519316,1766430644496,-500.0,0.00010958,2]
[399519318,1766430644506,-500.0,0.00010958,2]
[399519320,1766430644516,-626.87923894,0.00010958,2]
[399519322,1766430644528,-500.0,0.00010958,2]
[399519324,1766430644539,-500.0,0.00010958,2]
[399519327,1766430644551,-501.7961778,0.00010958,2]
[399519329,1766430644561,-26654.51,0.00010958,2]
[399519331,1766430644571,-500.0,0.00010958,2]
[399519333,1766430644580,-500.0,0.00010958,2]
[399519335,1766430644590,-1768.46,0.00010958,2]
[399519336,1766430644601,-504.96,0.00010958,2]
[399519338,1766430644610,-4958.45,0.00010958,2]
[399519340,1766430644620,-500.0,0.00010958,2]
[399519342,1766430644630,-500.0,0.00010958,2]
[399519344,1766430644640,-2643.26,0.00010958,2]
[399519346,1766430644649,-1588.49,0.00010958,2]
[399519349,1766430644659,-500.0,0.00010958,2]
[399519351,1766430644669,-1230.95,0.00010958,2]
[399519352,1766430644678,-1353.15,0.00010958,2]
[399519354,1766430644688,-1567.33,0.00010958,2]
[399519356,1766430644697,-500.0,0.00010958,2]
[399519359,1766430644707,-5966.35,0.00010958,2]
[399519361,1766430644716,-500.0,0.00010958,2]
[399519363,1766430644730,-1613.66,0.00010958,2]
[399519365,1766430644740,-3684.88,0.00010958,2]
[399519367,1766430644749,-677.38,0.00010958,2]
[399519369,1766430644759,-500.0,0.00010958,2]
[399519371,1766430644768,-4837.08,0.00010958,2]
[399519373,1766430644778,-500.0,0.00010958,2]
[399519374,1766430644787,-500.0,0.00010958,2]
[399519376,1766430644797,-2227.75,0.00010958,2]
[399519379,1766430644807,-500.0,0.00010958,2]
[399519381,1766430644816,-1377.85,0.00010958,2]
[399519383,1766430644827,-500.0,0.00010958,2]
[399519384,1766430644837,-363.23675788,0.00010958,2]
[399519387,1766430644847,-504.48076219,0.00010958,2]
[399519389,1766430644857,-550.69,0.00010958,2]
[399519391,1766430644868,-2694.33,0.00010958,2]
[399519393,1766430644878,-4241.59,0.00010958,2]
[399519395,1766430644888,-2159.23,0.00010958,2]
[399519397,1766430644898,-18679.46,0.00010958,2]
[399519399,1766430644907,-1056.63,0.00010958,2]
[399519401,1766430644918,-500.0,0.00010958,2]
[399519403,1766430644927,-1340.38,0.00010958,2]
[399519405,1766430644937,-504.03887987,0.00010958,2]
[399519407,1766430644946,-668.1,0.00010958,2]
[399519409,1766430644956,-500.0,0.00010958,2]
[399519411,1766430644965,-1112.02,0.00010958,2]
[399519413,1766430644975,-500.0,0.00010958,2]
[399519415,1766430644984,-500.0,0.00010958,2]
[399519417,1766430644994,-8005.15,0.00010958,2]
[399519419,1766430645004,-1273.12,0.00010958,2]
[399519421,1766430645013,-1117.46,0.00010958,2]
[399519423,1766430645024,-1097.78,0.00010958,2]
[399519425,1766430645034,-500.0,0.00010958,2]
[399519427,1766430645043,-500.0,0.00010958,2]
[399519429,1766430645053,-500.0,0.00010958,2]
[399519431,1766430645063,-500.0,0.00010958,2]
[399519433,1766430645074,-500.0,0.00010958,2]
[399519435,1766430645084,-500.0,0.00010958,2]
[399519437,1766430645094,-500.0,0.00010958,2]
[399519439,1766430645103,-500.0,0.00010958,2]
[399519441,1766430645113,-4810.67,0.00010958,2]
[399519443,1766430645123,-7902.06,0.00010958,2]
[399519445,1766430645132,-500.0,0.00010958,2]
[399519447,1766430645142,-500.0,0.00010958,2]
[399519449,1766430645152,-500.0,0.00010958,2]
[399519451,1766430645162,-500.0,0.00010958,2]
[399519453,1766430645172,-640.3064309,0.00010958,2]
[399519455,1766430645181,-1986.04,0.00010958,2]
[399519457,1766430645191,-1743.64,0.00010958,2]
[399519459,1766430645200,-1845.29,0.00010958,2]
[399519461,1766430645211,-1147.61,0.00010958,2]
[399519464,1766430645226,-500.0,0.00010958,2]
[399519466,1766430645236,-500.0,0.00010958,2]
[399519468,1766430645246,-5894.97,0.00010958,2]
[399519470,1766430645257,-500.0,0.00010958,2]
[399519472,1766430645266,-500.0,0.00010958,2]
[399519474,1766430645277,-5962.76,0.00010958,2]
[399519476,1766430645287,-1279.87,0.00010958,2]
[399519478,1766430645298,-500.0,0.00010958,2]
[399519481,1766430645308,-500.0,0.00010958,2]
[399519483,1766430645317,-1620.73,0.00010958,2]
[399519485,1766430645327,-500.0,0.00010958,2]
[399519487,1766430645340,-500.0,0.00010958,2]
[399519489,1766430645350,-946.2,0.00010958,2]
[399519491,1766430645361,-500.0,0.00010958,2]
[399519493,1766430645371,-500.0,0.00010958,2]
[399519495,1766430645381,-500.0,0.00010958,2]
[399519497,1766430645391,-441.47770002,0.00010958,2]
[399519500,1766430645402,-500.0,0.00010958,2]
[399519502,1766430645412,-500.0,0.00010958,2]
[399519504,1766430645422,-500.0,0.00010958,2]
[399519506,1766430645432,-500.0,0.00010958,2]
[399519508,1766430645442,-500.0,0.00010958,2]
[399519510,1766430645452,-4779.77,0.00010958,2]
[399519512,1766430645463,-5698.83,0.00010958,2]
[399519514,1766430645472,-500.0,0.00010958,2]
[399519516,1766430645482,-500.0,0.00010958,2]
[399519518,1766430645492,-500.0,0.00010958,2]
[399519520,1766430645502,-1302.37,0.00010958,2]
[399519522,1766430645512,-970.48,0.00010958,2]
[399519524,1766430645522,-500.0,0.00010958,2]
[399519526,1766430645532,-500.0,0.00010958,2]
[399519528,1766430645544,-500.0,0.00010958,2]
[399519530,1766430645557,-24678.34,0.00010958,2]
[399519532,1766430645567,-1050.28,0.00010958,2]
[399519535,1766430645576,-500.0,0.00010958,2]
[399519537,1766430645587,-877.27,0.00010958,2]
[399519539,1766430645596,-500.0,0.00010958,2]
[399519541,1766430645606,-500.0,0.00010958,2]
[399519543,1766430645617,-641.29,0.00010958,2]
[399519545,1766430645627,-2808.28,0.00010958,2]
[399519547,1766430645637,-500.0,0.00010958,2]
[399519549,1766430645647,-500.0,0.00010958,2]
[399519551,1766430645657,-500.0,0.00010958,2]
[399519553,1766430645666,-500.0,0.00010958,2]
[399519555,1766430645676,-2495.14,0.00010958,2]
[399519558,1766430645686,-500.0,0.00010958,2]
[399519561,1766430645695,-860.57,0.00010958,2]
[399519564,1766430645705,-10229.5,0.00010958,2]
[399519567,1766430645715,-968.32,0.00010958,2]
[399519570,1766430645724,-500.0,0.00010958,2]
[399519574,1766430645734,-500.0,0.00010958,2]
[399519577,1766430645745,-6243.01,0.00010958,2]
[399519580,1766430645757,-516.86229601,0.00010958,2]
[399519583,1766430645772,-3328.52,0.00010958,2]
[399519586,1766430645782,-500.0,0.00010958,2]
[399519589,1766430645793,-659.04,0.00010958,2]
[399519591,1766430645803,-500.0,0.00010958,2]
[399519593,1766430645819,-500.0,0.00010958,2]
[399519595,1766430645829,-500.0,0.00010958,2]
[399519597,1766430645839,-500.0,0.00010958,2]
[399519599,1766430645850,-500.0,0.00010958,2]
[399519601,1766430645860,-500.0,0.00010958,2]
[399519603,1766430645870,-500.0,0.00010958,2]
[399519605,1766430645879,-500.0,0.00010958,2]
[399519607,1766430645889,-500.0,0.00010958,2]
[399519609,1766430645899,-6287.66,0.00010958,2]
[399519611,1766430645909,-500.0,0.00010958,2]
[399519614,1766430645921,-500.0,0.00010958,2]
[399519616,1766430645931,-500.0,0.00010958,2]
[399519618,1766430645942,-500.0,0.00010958,2]
[399519620,1766430645952,-500.0,0.00010958,2]
[399519622,1766430645962,-2014.63,0.00010958,2]
[399519624,1766430645973,-953.67,0.00010958,2]
[399519626,1766430645983,-500.0,0.00010958,2]
[399519628,1766430645993,-500.0,0.00010958,2]
[399519630,1766430646004,-1609.2,0.00010958,2]
[399519632,1766430646014,-502.08361688,0.00010958,2]
[399519634,1766430646025,-16946.28,0.00010958,2]
[399519636,1766430646035,-500.0,0.00010958,2]
[399519638,1766430646045,-500.0,0.00010958,2]
[399519640,1766430646055,-500.0,0.00010958,2]
[399519642,1766430646065,-500.0,0.00010958,2]
[399519645,1766430646076,-500.0,0.00010958,2]
[399519647,1766430646086,-500.0,0.00010958,2]
[399519649,1766430646096,-500.0,0.00010958,2]
[399519651,1766430646105,-1665.05,0.00010958,2]
[399519653,1766430646114,-5676.51,0.00010958,2]
[399519655,1766430646123,-500.0,0.00010958,2]
[399519657,1766430646133,-500.0,0.00010958,2]
[399519659,1766430646142,-500.0,0.00010958,2]
[399519661,1766430646153,-500.0,0.00010958,2]
[399519663,1766430646163,-20315.36,0.00010958,2]
[399519665,1766430646172,-500.0,0.00010958,2]
[399519667,1766430646181,-914.58,0.00010958,2]
[399519669,1766430646190,-500.0,0.00010958,2]
[399519671,1766430646200,-656.7,0.00010958,2]
[399519673,1766430646209,-1890.74,0.00010958,2]
[399519675,1766430646219,-3312.3,0.00010958,2]
[399519677,1766430646229,-500.0,0.00010958,2]
[399519679,1766430646238,-500.0,0.00010958,2]
[399519681,1766430646248,-500.0,0.00010958,2]
[399519694,1766430646360,-4346.24,0.00010958,2]
[399519696,1766430646369,-15216.72,0.00010958,2]
[399519698,1766430646378,-2025.6,0.00010958,2]
[399519701,1766430646388,-624.57,0.00010958,2]
[399519703,1766430646398,-1120.45,0.00010958,2]
[399519705,1766430646408,-1310.28,0.00010958,2]
[399519707,1766430646418,-628.26644183,0.00010958,2]
[399519711,1766430646428,-3223.72,0.00010958,2]
[399519713,1766430646437,-501.71592952,0.00010958,2]
[399519715,1766430646447,-893.21,0.00010958,2]
[399519717,1766430646456,-500.0,0.00010958,2]
[399519719,1766430646466,-1417.61,0.00010958,2]
[399519721,1766430646476,-500.0,0.00010958,2]
[399519723,1766430646484,-500.0,0.00010958,2]
[399519724,1766430646493,-618.51,0.00010958,2]
[399519726,1766430646502,-500.0,0.00010958,2]
[399519728,1766430646510,-808.05,0.00010958,2]
[399519730,1766430646520,-1081.52,0.00010958,2]
[399519732,1766430646531,-500.0,0.00010958,2]
[399519735,1766430646544,-637.88457982,0.00010958,2]
[399519737,1766430646554,-500.0,0.00010958,2]
[399519739,1766430646564,-500.0,0.00010958,2]
[399519741,1766430646573,-1377.19,0.00010958,2]
[399519743,1766430646585,-500.0,0.00010958,2]
[399519745,1766430646594,-500.0,0.00010958,2]
[399519747,1766430646603,-17209.64,0.00010958,2]
[399519749,1766430646612,-544.58,0.00010958,2]
[399519750,1766430646622,-554.82,0.00010958,2]
[399519753,1766430646632,-500.0,0.00010958,2]
[399519755,1766430646641,-500.0,0.00010958,2]
[399519757,1766430646650,-2306.42,0.00010958,2]
[399519758,1766430646659,-500.0,0.00010958,2]
[399519761,1766430646669,-357.0798666,0.00010958,2]
[399519763,1766430646679,-500.0,0.00010958,2]
[399519765,1766430646688,-13818.81,0.00010958,2]
[399519767,1766430646697,-747.29,0.00010958,2]
[399519768,1766430646706,-500.0,0.00010958,2]
[399519770,1766430646716,-500.0,0.00010958,2]
[399519773,1766430646729,-800.18,0.00010958,2]
[399519775,1766430646738,-500.0,0.00010958,2]
[399519777,1766430646747,-500.0,0.00010958,2]
[399519779,1766430646756,-500.0,0.00010958,2]
[399519781,1766430646765,-3414.58,0.00010958,2]
[399519783,1766430646775,-510.54506798,0.00010958,2]
[399519785,1766430646784,-5309.74,0.00010958,2]
[399519787,1766430646793,-1878.4,0.00010958,2]
[399519789,1766430646802,-1732.96,0.00010958,2]
[399519791,1766430646811,-500.0,0.00010958,2]
[399519793,1766430646820,-500.0,0.00010958,2]
[399519795,1766430646829,-500.0,0.00010958,2]
[399519797,1766430646838,-500.0,0.00010958,2]
[399519799,1766430646848,-2623.0,0.00010958,2]
[399519801,1766430646864,-500.0,0.00010958,2]
[399519803,1766430646873,-500.0,0.00010958,2]
[399519805,1766430646882,-520.54,0.00010958,2]
[399519807,1766430646891,-500.0,0.00010958,2]
[399519809,1766430646901,-1450.0,0.00010958,2]
[399519811,1766430646911,-500.0,0.00010958,2]
[399519813,1766430646920,-712.18,0.00010958,2]
[399519815,1766430646930,-500.0,0.00010958,2]
[399519817,1766430646939,-500.0,0.00010958,2]
[399519819,1766430646949,-500.0,0.00010958,2]
[399519821,1766430646958,-501.95946137,0.00010958,2]
[399519823,1766430646967,-500.0,0.00010958,2]
[399519825,1766430646976,-500.0,0.00010958,2]
[399519827,1766430646985,-500.0,0.00010958,2]
[399519829,1766430646995,-500.0,0.00010958,2]
[399519831,1766430647004,-500.0,0.00010958,2]
[399519833,1766430647013,-500.0,0.00010958,2]
[399519835,1766430647021,-368.98063373,0.00010958,2]
[399519837,1766430647031,-955.36,0.00010958,2]
[399519839,1766430647040,-2242.06,0.00010958,2]
[399519841,1766430647049,-500.0,0.00010958,2]
[399519843,1766430647059,-500.0,0.00010958,2]
[399519845,1766430647068,-19809.54,0.00010958,2]
[399519847,1766430647077,-392.8465959,0.00010958,2]
[399519948,1766430648045,-107.1534041,0.00010958,2]
[399519950,1766430648054,-393.42843522,0.00010958,2]
[399519953,1766430648066,-106.57156478,0.00010958,2]
[399519955,1766430648076,-500.0,0.00010958,2]
[399519957,1766430648085,-889.89,0.00010958,2]
[399519959,1766430648095,-500.0,0.00010958,2]
[399519961,1766430648104,-1390.04,0.00010958,2]
[399519963,1766430648112,-1198.89,0.00010958,2]
[399519965,1766430648121,-6129.04,0.00010958,2]
[399519967,1766430648130,-612.61150146,0.00010958,2]
[399519969,1766430648139,-877.95,0.00010958,2]
[399519971,1766430648148,-1524.88,0.00010958,2]
[399519973,1766430648157,-501.22420179,0.00010958,2]
[399519975,1766430648166,-930.72,0.00010958,2]
[399519976,1766430648175,-1008.72,0.00010958,2]
[399519977,1766430648184,-1410.49,0.00010958,2]
[399519978,1766430648194,-500.0,0.00010958,2]
[399519979,1766430648203,-500.0,0.00010958,2]
[399519980,1766430648212,-500.0,0.00010958,2]
[399519981,1766430648221,-1546.68,0.00010958,2]
[399519982,1766430648230,-500.0,0.00010958,2]
[399519983,1766430648239,-500.0,0.00010958,2]
[399519984,1766430648248,-922.98,0.00010958,2]
[399519985,1766430648257,-503.5628117,0.00010958,2]
[399519986,1766430648266,-647.72,0.00010958,2]
[399519987,1766430648275,-369.37537344,0.00010958,2]
[399519998,1766430649101,-176.89462656,0.00010958,2]
[399519999,1766430649111,-500.0,0.00010958,2]
[399520000,1766430649121,-1366.04537344,0.00010958,2]
[399520046,1766431832191,-336.8467484,7.628e-05,2]
[399520090,1766431838254,-238.56194794,7.628e-05,2]
[399520091,1766431838263,-181.08800287,7.725e-05,2]
[399520092,1766431838273,-150.0,8.098e-05,2]
[399520093,1766431838283,-150.0,8.483e-05,2]
[399520094,1766431838293,-150.0,8.88e-05,2]
[399520095,1766431838302,-550.31813362,9.152e-05,2]
[399520096,1766431838311,-20000.0,9.173e-05,2]
[399520097,1766431838321,-150.0,9.303e-05,2]
[399520098,1766431838331,-213.68384339,9.725e-05,2]
[399520099,1766431838340,-150.0,9.726e-05,2]
[399520100,1766431838350,-250.0,9.963e-05,2]
[399520101,1766431838359,-154.221,9.981e-05,2]
[399520102,1766431838369,-500.0,0.00010024,2]
[399520103,1766431838378,-500.0,0.00010024,2]
[399520104,1766431838388,-500.0,0.00010024,2]
[399520105,1766431838397,-500.0,0.00010024,2]
[399520106,1766431838406,-500.0,0.00010024,2]
[399520107,1766431838415,-500.0,0.00010024,2]
[399520108,1766431838424,-500.0,0.00010024,2]
[399520109,1766431838433,-500.0,0.00010024,2]
[399520110,1766431838442,-500.0,0.00010024,2]
[399520111,1766431838451,-500.0,0.00010024,2]
[399520112,1766431838460,-500.0,0.00010024,2]
[399520113,1766431838469,-500.0,0.00010024,2]
[399520114,1766431838478,-150.0,0.00010026,2]
[399520115,1766431838488,-500.0,0.00010029,2]
[399520116,1766431838497,-235.21160876,0.00010029,2]
[399520117,1766431838506,-165.98568539,0.000102,2]
[399520118,1766431838515,-165.98568539,0.00010247,2]
[399520119,1766431838524,-165.98568539,0.00010388,2]
[399520120,1766431838533,-150.0,0.00010411,2]
[399520121,1766431838543,-1041.66666667,0.00010591,2]
[399520122,1766431838552,-165.98568539,0.00010624,2]
[399520123,1766431838561,-608.88788236,0.00010739,2]
[399520124,1766431838571,-16879.23959626,0.00010858,2]
[399520125,1766431838581,-95558.19845931,0.00010858,2]
[399520142,1766431840545,-14362.33781102,9.963e-05,2]
[399520146,1766431840604,-35637.66218898,9.963e-05,2]
[399520148,1766431840614,-14852.52518965,0.00010858,2]
[399520412,1766431843509,-4131.12882622,0.00010858,2]
[399520413,1766431843520,-1330.89894074,0.00010858,2]
[399520414,1766431843531,-1046.32681666,0.00010858,2]
[399520595,1766431846771,-1773.0,0.00010858,2]
[399520630,1766433032415,-461.90570461,8.885e-05,2]
[399520631,1766433032428,-4538.09429539,8.885e-05,2]
[399520632,1766433032437,-173.19256595,8.93e-05,2]
[399520633,1766433032446,-1641.04561374,8.975e-05,2]
[399520634,1766433032456,-20000.0,9.598e-05,2]
[399520636,1766433032466,-154.221,0.00010543,2]
[399520638,1766433032475,-186.42762168,0.00010658,2]
[399520640,1766433032485,-514.64812613,0.00010681,2]
[399520642,1766433032494,-1041.66666667,0.00010682,2]
[399520644,1766433032503,-405.92525491,0.00010739,2]
[399520645,1766433032513,-31663.79822917,0.00010758,2]
[399520647,1766433032524,-68204.68341819,0.00010758,2]
[399520648,1766433032536,-319.74,0.00010758,2]